Cogmind - Beta 15 @@@ ROGUE MODE // 2025.07.07 @ 22:36:34 Player: Vaya Result: Destroyed self with Grenade Launcher Performance ------------- Evolutions (0) 0 Regions Visited (3) 600 Robots Destroyed (30) 150 Value Destroyed (688) 688 Prototype IDs (0) 0 Alien Tech Used (0) 0 Bonus (-161) -161 TOTAL SCORE: 1277 Bonus ------- Friendly Fire -161 Cogmind --------- Core Integrity 0/250 Matter 212/300 Energy 100/100 System Corruption 5% Temperature Cool (0) Movement Core (750) Ox14 Location -10/Subcaves Parts ------- > --- POWER (1) -------- (None) > --- PROPULSION (2) --- (None) > --- UTILITY (2) ------ High-capacity Storage Unit Seismic Detector > --- WEAPON (2) ------- Grenade Launcher > --- INVENTORY (20) --- Aluminum Leg Large Storage Unit High-capacity Storage Unit Medium Matter Pod (100) Visual Processing Unit Signal Interpreter Terrain Scan Processor Seismic Detector Targeting Computer Propulsion Shielding Scrap Shield EM Pulse Gun Medium Laser Beam Rifle Heavy Assault Rifle Welding Torch Peak State ------------ > --- POWER ------------ Improved Ion Engine > --- PROPULSION ------- Aluminum Leg Aluminum Leg > --- UTILITY ---------- High-capacity Storage Unit Improved Terrain Scanner > --- WEAPON ----------- Medium Laser Assault Rifle > --- INVENTORY -------- Ion Engine Light Treads Light Treads Small Storage Unit Large Storage Unit High-capacity Storage Unit Medium Matter Pod Visual Processing Unit Seismic Detector Seismic Detector EM Pulse Gun Beam Rifle Heavy Assault Rifle Grenade Launcher Mining Laser Mining Laser Welding Torch [Rating: 12] Favorites ----------- Power Improved Ion Engine Engine Improved Ion Engine Propulsion Aluminum Leg Treads Light Treads Leg Aluminum Leg Utility High-capacity Storage Unit Device Improved Terrain Scanner Storage High-capacity Storage Unit Weapon Medium Laser Energy Gun Medium Laser Ballistic Gun Assault Rifle Launcher Grenade Launcher Special Weapon Mining Laser Build | -11 -10 -10 -10 ------- Run | Yrd Mat Min Sub Slots Evolved . | . . . . Power . | . . . . Propulsion . | . . . . Utility . | . . . . Weapon . | . . . . Parts Attached 17 | 7 2 4 4 Power 2 | 1 . 1 . Engine 2 | 1 . 1 . Core . | . . . . Reactor . | . . . . Propulsion 4 | 2 . 2 . Treads 2 | . . 2 . Leg 2 | 2 . . . Wheel . | . . . . Hover . | . . . . Flight . | . . . . Utility 5 | 2 2 . 1 Device 2 | 1 . . 1 Storage 3 | 1 2 . . Processor . | . . . . Hackware . | . . . . Protection . | . . . . Artifact . | . . . . Weapon 6 | 2 . 1 3 Energy Gun 1 | 1 . . . Energy Cannon . | . . . . Ballistic Gun 2 | 1 . 1 . Ballistic Cannon . | . . . . Launcher 2 | . . . 2 Special Weapon 1 | . . . 1 Impact Weapon . | . . . . Slashing Weapon . | . . . . Piercing Weapon . | . . . . Special Melee Weapon . | . . . . Unidentified Prototypes . | . . . . Parts Lost 9 | . . 3 6 Power 2 | . . . 2 Propulsion 3 | . . 1 2 Utility 1 | . . 1 . Weapon 3 | . . 1 2 Highest Loss Streak 5 | . . 2 5 To Critical Strikes . | . . . . Average Backups 16 | 4 11 18 17 Power . | . 1 1 . Propulsion 1 | . 2 1 1 Utility 8 | . 4 9 10 Weapon 5 | 2 3 5 4 Tool/Special . | . . . . Unused Backups 17 | . 2 3 12 Power 1 | . . 1 . Propulsion 2 | . 2 . . Utility 9 | . . . 9 Weapon 4 | . . 2 2 Tool/Special 1 | . . . 1 Average Slot Usage (%) 90 | . 100 88 95 Engine 13 | . 14 14 13 Treads 13 | . . 13 27 Leg 14 | . 28 14 . Device 5 | . 14 2 12 Storage 14 | . 14 14 14 Energy Gun 13 | . 14 14 10 Ballistic Gun 13 | . 14 14 12 Peak Build Rating 12 | 9 10 12 11 Average Rating 9 | 7 9 10 10 On Entrance 7 | . 9 10 10 Naked Turns . | . . . . Heaviest Build 53 | 15 50 52 53 Greatest Support 40 | 20 20 40 40 Greatest Overweight (x) 2 | . 2 2 1 Average Overweight (x) 1 | . 1 1 1 Largest Inventory Capacity 20 | 8 20 20 20 Average Capacity 18 | 7 17 20 20 Most Carried 20 | 8 15 20 20 Average Carried 16 | 4 12 18 18 Final Capacity 20 | 8 20 20 20 Final Carried 18 | 8 15 18 17 Class Distribution -------------------- 100% | Mutant Dominant Class ---------------- Mutant | -10/Materials Mutant | -10/Mines Mutant | -10/Subcaves Resources | -11 -10 -10 -10 ----------- Run | Yrd Mat Min Sub Matter Collected 609 | 294 136 144 35 Remotely . | . . . . Salvage Created 830 | 156 20 319 335 Parts 68 | 18 4 24 22 Haulers Intercepted . | . . . . Recyclers Shooed 1 | 1 . . . Parts Field Recycled . | . . . . Retrieved Matter . | . . . . Parts Self-Destructed 24 | . . . 24 Prevented . | . . . . Kills | -11 -10 -10 -10 ------- Run | Yrd Mat Min Sub Combat Hostiles Destroyed 20 | . . 10 10 Guns 11 | . . 10 1 AOE 9 | . . . 9 Classes Destroyed 10 | 3 1 4 2 Worker 2 | 2 . . . Builder 1 | . . 1 . Tunneler 4 | 4 . . . Recycler 1 | 1 . . . Watcher 1 | . 1 . . Swarmer 6 | . . 6 . Grunt 2 | . . 2 . Sentry 2 | . . 2 . Subdweller 10 | . . . 10 Guerrilla 1 | . . . 1 Best Kill Streak 7 | 6 1 3 7 Combat Bots Only 7 | . . 3 7 Max Kills in Single Turn 2 | 1 1 1 2 Gunslinging . | . . . . Exploded 2 | . . . 2 Melee . | . . . . Uniques/NPCs Destroyed . | . . . . Combat | -11 -10 -10 -10 -------- Run | Yrd Mat Min Sub Hostile Shots Fired 132 | . . 81 51 Missed 41 | . . 24 17 Hits 91 | . . 57 34 Projectile 91 | . . 57 34 Critical Strikes 4 | . . 4 . Damage Taken 1355 | . . 657 698 Core 256 | . . 156 100 Absorbed by Shields . | . . . . Core Remaining (%) 100 | 100 . . . Volleys Fired 67 | 13 3 38 13 Largest 2 | 2 2 2 2 Hottest 73 | 70 70 73 73 Shots Fired 120 | 26 6 69 19 Gun 112 | 26 6 69 11 Cannon . | . . . . Launcher 8 | . . . 8 Special . | . . . . Kinetic 59 | 13 3 37 6 Thermal 53 | 13 3 32 5 Explosive 8 | . . . 8 Electromagnetic . | . . . . Robot Hit Streak 10 | 6 10 5 8 Robot Miss Streak 6 | 1 1 4 6 Penetration Max . | . . . . Secondary Targets 1 | . . 1 . Max Gunslinging Chain 1 | . . 1 . Shots Hit Robots 78 | 20 4 43 11 Core Hits 44 | 8 1 16 19 Critical Kills . | . . . . Critical Parts Destroyed . | . . . . Critical Strikes 5 | 4 . 1 . Burn 5 | 4 . 1 . Melee Attacks . | . . . . Impact . | . . . . Slashing . | . . . . Piercing . | . . . . Sneak Attacks . | . . . . Combat Hostiles . | . . . . Follow-up Attacks . | . . . . Damage Inflicted 1848 | 252 50 574 972 Guns 931 | 252 50 574 55 Cannons . | . . . . Explosions 917 | . . . 917 Melee . | . . . . Ramming . | . . . . Kinetic 497 | 141 11 315 30 Thermal 434 | 111 39 259 25 Explosive 917 | . . . 917 Electromagnetic . | . . . . Impact . | . . . . Slashing . | . . . . Piercing . | . . . . Highest Corruption 5 | . . . 5 Average Corruption 5 | . . . 5 Corruption Purged . | . . . . Corruption Blocked . | . . . . Overload Shots . | . . . . Overflow Damage . | . . . . Projectiles . | . . . . Explosions . | . . . . Melee . | . . . . Knockbacks . | . . . . Impact . | . . . . Kinetic . | . . . . Secondary . | . . . . Self-Inflicted Damage 100 | . . . 100 Shots 4 | . . . 4 Rammed . | . . . . Targets Rammed . | . . . . Kicked . | . . . . Crushed . | . . . . Highest Temperature 304 | 36 18 304 9 Average Temperature 72 | 13 9 96 9 Received Heat Transfer 348 | . . 234 114 Effects 3 | . . 3 . Interference 3 | . . 3 . Siege Activations . | . . . . Martial Activations . | . . . . Shielding Activations . | . . . . Robots Disrupted . | . . . . Combat Hostiles . | . . . . Robots Corrupted . | . . . . Combat Hostiles . | . . . . Parts Fried . | . . . . Impact Corruptions . | . . . . Robots Melted . | . . . . Combat Hostiles . | . . . . Parts Melted 3 | 1 . 2 . Heat Transferred 1665 | 629 111 851 74 Parts Sabotaged . | . . . . Parts Stolen . | . . . . Parts Stripped . | . . . . Power Chain Reactions . | . . . . Alert | -11 -10 -10 -10 ------- Run | Yrd Mat Min Sub Maximum Alert Level . | . . . . Low Security (%) 100 | 100 100 100 . Level 1 . | . . . . Level 2 . | . . . . Level 3 . | . . . . Level 4 . | . . . . Level 5 . | . . . . High Security . | . . . . Max Security . | . . . . Peak Influence 64 | 10 7 64 . Initial . | . . . . Average 6 | 1 . 8 . Influence Increases 322 | 35 7 235 45 Destroy 0b10 Robot/C 200 | . . 200 . Destroy 0b10 Robot/NC 45 | 35 5 5 . Destroy Leader 32 | . 2 30 . Lose Combat Pursuer 45 | . . . 45 Influence Decreases 322 | 35 7 235 45 Time Decay 304 | 35 7 217 45 Lost Part 18 | . . 18 . Squads Dispatched 1 | . 1 . . Investigation . | . . . . Extermination . | . . . . Reinforcement 1 | . 1 . . Assault . | . . . . Garrison . | . . . . Intercept . | . . . . Searches Triggered . | . . . . Construction Impeded . | . . . . Haulers Reinforced . | . . . . Active Scanning Responses . | . . . . Cargo Convoy Interrupts . | . . . . Stealth | -11 -10 -10 -10 --------- Run | Yrd Mat Min Sub Distress Signals . | . . . . Communications Jammed . | . . . . Distress Signals . | . . . . Times Spotted 33 | . 2 10 21 Peak Tracking Total 6 | . 2 3 6 Tactical Retreats 1 | . . . 1 Traps | -11 -10 -10 -10 ------- Run | Yrd Mat Min Sub Traps Triggered . | . . . . Indirectly . | . . . . Trap Hack Attempts . | . . . . Triggered . | . . . . Disarmed . | . . . . Reprogrammed . | . . . . Reused . | . . . . Traps Extracted . | . . . . Installed . | . . . . Triggered . | . . . . Machines | -11 -10 -10 -10 ---------- Run | Yrd Mat Min Sub Machines Disabled 2 | . . 2 . Max in Single Turn 1 | . . 1 . Machines Repaired . | . . . . Machines Dismantled . | . . . . Machines Sabotaged . | . . . . Overloaded Fab Kills . | . . . . Hacking | -11 -10 -10 -10 --------- Run | Yrd Mat Min Sub Machines Accessed . | . . . . Terminals . | . . . . Fabricators . | . . . . Repair Stations . | . . . . Recycling Units . | . . . . Scanalyzers . | . . . . Garrison Access . | . . . . Total Hacks . | . . . . Successful . | . . . . Failed . | . . . . Catastrophic . | . . . . Database Lockouts . | . . . . Manual . | . . . . Terminals . | . . . . Fabricators . | . . . . Repair Stations . | . . . . Recycling Units . | . . . . Scanalyzers . | . . . . Garrison Access . | . . . . Terminal Hacks . | . . . . Fabricator Hacks . | . . . . Repair Station Hacks . | . . . . Recycling Unit Hacks . | . . . . Scanalyzer . | . . . . Garrison Access Hacks . | . . . . Unauthorized Hacks . | . . . . Terminals . | . . . . Fabricators . | . . . . Repair Stations . | . . . . Recycling Units . | . . . . Scanalyzers . | . . . . Garrison Access . | . . . . Data Cores Recovered . | . . . . Used . | . . . . Hacking Detections . | . . . . Full Trace Events . | . . . . Feedback Events . | . . . . Feedback Blocked . | . . . . Robot Schematics Acquired . | . . . . Robots Built . | . . . . Authchips . | . . . . Time . | . . . . Total Robot Build Rating . | . . . . Part Schematics Acquired . | . . . . Parts Built . | . . . . Authchips . | . . . . Time . | . . . . Total Part Build Rating . | . . . . Parts Repaired . | . . . . Time . | . . . . Parts Recycled . | . . . . Recycled Matter . | . . . . Retrieved Matter . | . . . . Retrieved Components . | . . . . Parts Scanalyzed . | . . . . Part Schematics Acquired . | . . . . Parts Damaged . | . . . . Bothacking | -11 -10 -10 -10 ------------ Run | Yrd Mat Min Sub Used RIF Installer . | . . . . Robots Hacked . | . . . . Non-combat . | . . . . Combat . | . . . . Robot Hacks Applied . | . . . . Relay Couplers Released . | . . . . Fabnet Peak Effective % . | . . . . Robots Rewired . | . . . . Allies Hacked . | . . . . Hacks Repelled . | . . . . Allies | -11 -10 -10 -10 -------- Run | Yrd Mat Min Sub Total Allies . | . . . . Largest Group . | . . . . Highest-Rated Group . | . . . . Highest-Rated Ally . | . . . . Total Orders . | . . . . Ally Attacks . | . . . . Total Damage . | . . . . Kills . | . . . . Allies Corrupted . | . . . . Allies Melted . | . . . . Intel | -11 -10 -10 -10 ------- Run | Yrd Mat Min Sub Active Infowar (turns) 1020 | 131 283 325 281 Terrain 739 | 131 283 325 . Seismic 281 | . . . 281 Robot Analysis Total . | . . . . Derelict Logs Recovered 1 | . . 1 . Drone Launches . | . . . . Drone Recoveries . | . . . . Exploration | -11 -10 -10 -10 ------------- Run | Yrd Mat Min Sub Turns Passed 2420 | 199 283 1632 306 Spaces Moved 963 | 120 125 606 112 Core 8 | 8 . . . Treads 436 | . . 324 112 Legs 519 | 112 125 282 . Wheels . | . . . . Hover . | . . . . Flight . | . . . . Fastest Speed 50 | 50 120 240 240 Average Speed 226 | 115 210 249 240 Slowest Speed 260 | 120 260 260 240 Overloaded Moves . | . . . . Propulsion Burnouts . | . . . . Robots Hopped . | . . . . Potential Cave-ins . | . . . . Cave-ins Triggered 1 | . . . 1 Exploration Rate (%) 36 | 4 34 100 8 Regions Visited 3 Branch Regions 2 Pre-discovered Areas . | . . . . Known Exits Taken . | . . . . Unknown Exits Taken 3 | 1 1 1 . Scrap Searched 1 | . . 1 . Spaces Dug . | . . . . Terrain Destroyed 43 | . . . 43 Melee . | . . . . Projectile . | . . . . AOE 43 | . . . 43 Terrain Rammed . | . . . . Walls Destroyed . | . . . . Machines Disabled . | . . . . Actions | -11 -10 -10 -10 --------- Run | Yrd Mat Min Sub Total 1085 | 154 140 660 131 Wait . | . . . . Move 960 | 119 124 605 112 Hop . | . . . . Pick Up 34 | 15 9 9 1 Fast Attach . | . . . . Attach 12 | 7 . 2 3 Detach . | . . . . Swap 6 | . 2 2 2 Drop 6 | . 2 4 . Fire 67 | 13 3 38 13 Melee . | . . . . Ram . | . . . . Kick . | . . . . Crush . | . . . . Escape Stasis . | . . . . Rewire . | . . . . Trap . | . . . . Miscellaneous . | . . . . Route ------- -11/Scrapyard -10/Materials -10/Mines (discovered 3 exits: [*Mat x2] / [*Sub]) -10/Subcaves (discovered 1 exit: [*Rec]) History --------- Turn | Location | Event 8 | -11/Scrapyard | Discovered new exit (range 15) 200 | -11/Scrapyard | Entered Materials 301 | -10/Materials | Build established: Mutant 443 | -10/Materials | Discovered new exit (range 14) 483 | -10/Materials | Entered Mines 512 | -10/Mines | Met a Derelict bent on vengeance 821 | -10/Mines | Discovered new exit (range 5) 899 | -10/Mines | YI-UF0 nonchalantly dropped a Grenade Launcher on the ground 1305 | -10/Mines | Core integrity fell below 50% 1487 | -10/Mines | Learned Materials security intel 1508 | -10/Mines | Discovered new exit (range 5) 2093 | -10/Mines | Discovered new exit (range 7) 2115 | -10/Mines | Entered Subcaves 2262 | -10/Subcaves | Core integrity fell below 20% 2272 | -10/Subcaves | Discovered new exit (range 13) 2395 | -10/Subcaves | A swath of the cavern ceiling suddenly collapsed 2397 | -10/Subcaves | Ambushed by swarm of Subdwellers 2410 | -10/Subcaves | Ambushed by Subdwellers from Twisted Machinery 2414 | -10/Subcaves | Ambushed by Subdweller buried in earth 2416 | -10/Subcaves | Crushed by falling debris 2421 | -10/Subcaves | Destroyed self with Grenade Launcher Last Messages --------------- GD-13Z(h) destroyed. [Achievement: Backstab] F4-X51(R) affixes Scrap Shield Fragment to Scrap Shield. M9-TIE(R): "ARGHSUB!" The unstable cave ceiling collapses. Crushed by falling debris. [Achievement: Unlikely Earthworm] Mining Laser destroyed. System corrupted by crushing effect (+1). Grenade Launcher destroyed. System corrupted by crushing effect (+3). Ion Engine destroyed. System corrupted by crushing effect (+1). LW-Z5L(R) affixes Scrap Shield Fragment to Scrap Shield. F4-X51(R) destroyed. LW-Z5L(R) destroyed. Lgt. Treads destroyed. M9-TIE(R) destroyed. Map ----- +----------------------------------------------------+ | # & #????????????????????????????????????? | | ## &%! #### #??????????????????????????????? | | ?##=![ ## #????????????????????????????????? | | ??### # #### #???#?????? ???????????????????? | | ????# ##??????## ??????? ??????????????????? | | ????## #?????? ???????? ??????????????????? | | ?????#### #????? ????????? ??????????????????? | | ????????# ##???# #????????## ???????????????????? | | ????????# #### #????????# ???????????????????? | | ??????### #????????# ???????????????????? | | ????### ####????????# #???????????????????? | | ????# "" ##????????? #???????????????????? | | ????##""""" ##????????# #???????????????????? | | ?????#"""" ########## ###?????????????????? | | ?????#"" # ## # ##????????????????? | | ?????# # !& ?????????????? | | ?????# ## # # !%=#??????????????????? | | ?????## ### ## #### * #???????????????????? | | ??????####% #?#### # #;#;#???????????????????? | | ?????????#% #????# #; ####????????????????? | | ??????#### ####?### ### [ #????????????????? | | ??????#" %% "#???###?# [ & #????????????????? | | ??????# #???????# & ##???????????????? | | ??????# #??????##& #???????????????? | | ??????#" "#??????# % & #????????????????? | | ??????#" %% % "#??????#&@& %! #????????????????? | | ??????#""" %" ""#??????# * #???????????????? | | ??????#####<#####??????## %% ##???????????????? | | ??????????###???????????# # ##????????????????? | | ????????????????????????#;##*###?????????????????? | | ????????????????????????### ;#??????????????????? | | ????????????????????????##" ##??????????????????? | | ?????????????????????????##" ???????????????????? | | ??????????????????????????#"""???????????????????? | | ??????????????????????????"" #???????????????????? | | ???????????????????????????? ????????????????????? | | ???????????????????????????? ????????????????????? | | ???????????????????????????? ????????????????????? | | ?????????????????????????????????????????????????? | | ?????????????????????????????????????????????????? | | ?????????????????????????????????????????????????? | | ?????????????????????????????????????????????????? | | ?????????????????????????????????????????????????? | | ?????????????????????????????????????????????????? | | ?????????????????????????????????????????????????? | | ?????????????????????????????????????????????????? | | ?????????????????????????????????????????????????? | | ?????????????????????????????????????????????????? | | ?????????????????????????????????????????????????? | | ?????????????????????????????????????????????????? | +----------------------------------------------------+ Best States ------------- Heat Dissipation 25 Energy Generation 12 Energy Capacity 265 Matter Stores 300 Matter Capacity 300 Sight Range 16 Terrain Scan Range 16 Terrain Scan Density 10 Evasion (%) 55 Recoil Reduction 2 Item Schematics ----------------- None Robot Schematics ------------------ None Fabricated ------------ Nothing Repaired ---------- Nothing Alien Tech Used ----------------- None Achievements -------------- Backstab Unlikely Earthworm Challenges ------------ None Game ------ Seed BraceLinkedCleaver Manual? 0 Play Time 00:18:24 Cumulative 3.3 hours Start 2025.07.07 @ 22:19:19 End 2025.07.07 @ 22:36:34 Sessions 1 Manual Loads 0 Difficulty Rogue Special Mode None Game No. 5 Rogue 5 Adventurer 0 Explorer 0 Win Type - Total 0 Types 0/0/0/0/0/0/0/0/0/0 Lore% 0 Gallery% 8 Achievement% 7 Wizard Run 0 Options --------- Layout 1 ASCII 0 Keyboard 0 Movement Mouse Keybinds 0 Fullscreen 1 Font 24/Smallcaps Map View 50x35 Zoom Use 0% Tactical HUD 0 Map Filters NONE Filters NONE Steam 1 RUN: 897f7d1a-64ed-4d96-afd0-c57528ac6bc2